fUST/lending_fUST_20241007
["ID","MTS","AMOUNT","RATE_DAILY","PERIOD"]
[339978108,1728245524200,-500.0,0.00023287,2]
[339978109,1728245524211,-211.07293289,0.00023287,2]
[339978110,1728245524222,-339.0,0.00023288,2]
[339978111,1728245524234,-152.77,0.000233,31]
[339978112,1728245524247,-152.77,0.000233,31]
[339978113,1728245524258,-152.77,0.000233,31]
[339978114,1728245524268,-152.77,0.000233,31]
[339978115,1728245524280,-152.77,0.000233,31]
[339978116,1728245524290,-152.77,0.000233,31]
[339978117,1728245524300,-152.77,0.000233,31]
[339978118,1728245524311,-152.77,0.000233,31]
[339978119,1728245524322,-152.77,0.000233,31]
[339978120,1728245524332,-152.77,0.000233,31]
[339978121,1728245524344,-450.0,0.00023562,2]
[339978122,1728245524354,-177.3363292,0.00023836,2]
[339978123,1728245524365,-500.0,0.00024,2]
[339978124,1728245524377,-550.0,0.0002411,2]
[339978125,1728245524386,-339.0,0.00024164,2]
[339978126,1728245524396,-201.0,0.00024164,2]
[339978127,1728245524406,-1000.0,0.000244,3]
[339978128,1728245524415,-610.35565362,0.00024499,2]
[339978129,1728245524425,-409.23853104,0.00024657,14]
[339978130,1728245524434,-500.0,0.00024657,2]
[339978131,1728245524444,-200.0,0.00024657,2]
[339978132,1728245524454,-200.0,0.00024657,2]
[339978133,1728245524463,-200.0,0.00024657,2]
[339978134,1728245524473,-200.0,0.00024657,2]
[339978135,1728245524483,-200.0,0.00024657,2]
[339978136,1728245524494,-200.0,0.00024657,2]
[339978137,1728245524505,-200.0,0.00024657,2]
[339978138,1728245524516,-200.0,0.00024657,2]
[339978139,1728245524525,-200.0,0.00024657,2]
[339978140,1728245524535,-200.0,0.00024657,2]
[339978141,1728245524544,-200.0,0.00024657,2]
[339978142,1728245524553,-200.0,0.00024657,2]
[339978143,1728245524562,-200.0,0.00024657,2]
[339978144,1728245524571,-200.0,0.00024657,2]
[339978145,1728245524581,-200.0,0.00024657,2]
[339978146,1728245524590,-200.0,0.00024657,2]
[339978147,1728245524600,-200.0,0.00024657,2]
[339978148,1728245524610,-200.0,0.00024657,2]
[339978149,1728245524621,-292.27938524,0.00024657,2]
[339978150,1728245524632,-650.0,0.00024658,2]
[339978151,1728245524645,-200.0,0.00024658,15]
[339978152,1728245524656,-380.0,0.00024658,2]
[339978153,1728245524667,-200.0,0.00024658,2]
[339978154,1728245524676,-660.0,0.00024658,2]
[339978155,1728245524687,-3137.340213,0.00024658,7]
[339978156,1728245524696,-3137.340213,0.00024658,7]
[339978157,1728245524705,-3137.340213,0.00024658,7]
[339978158,1728245524715,-3137.340213,0.00024658,7]
[339978159,1728245524726,-3137.340213,0.00024658,7]
[339978160,1728245524735,-3137.340213,0.00024658,7]
[339978161,1728245524745,-3137.340213,0.00024658,7]
[339978162,1728245524754,-3137.340213,0.00024658,7]
[339978163,1728245524763,-3137.340213,0.00024658,7]
[339978164,1728245524772,-3137.340213,0.00024658,7]
[339978165,1728245524782,-3137.340213,0.00024658,7]
[339978166,1728245524944,-3137.340213,0.00024658,7]
[339978167,1728245524954,-3137.340213,0.00024658,7]
[339978168,1728245524964,-3137.340213,0.00024658,7]
[339978169,1728245524973,-3137.340213,0.00024658,7]
[339978170,1728245524983,-3137.340213,0.00024658,7]
[339978171,1728245524992,-3137.340213,0.00024658,7]
[339978172,1728245525002,-3137.340213,0.00024658,7]
[339978173,1728245525012,-3137.340213,0.00024658,7]
[339978174,1728245525022,-3137.340221,0.00024658,7]
[339978175,1728245525032,-22955.89,0.000247,14]
[339978176,1728245525041,-18633.03,0.000247,14]
[339978177,1728245525051,-3336.95,0.000247,7]
[339978178,1728245525062,-12112.26,0.000247,14]
[339978179,1728245525075,-152.77,0.000249,31]
[339978180,1728245525085,-152.77,0.000249,31]
[339978181,1728245525095,-152.77,0.000249,31]
[339978182,1728245525106,-152.77,0.000249,31]
[339978183,1728245525116,-152.77,0.000249,31]
[339978184,1728245525127,-152.77,0.000249,31]
[339978185,1728245525138,-152.77,0.000249,31]
[339978186,1728245525147,-152.77,0.000249,31]
[339978187,1728245525161,-152.77,0.000249,31]
[339978188,1728245525171,-152.77,0.000249,31]
[339978189,1728245525183,-1034.11375663,0.00025,2]
[339978190,1728245525195,-818137.93008604,0.00025,2]
[339978191,1728245525205,-56593.53971121,0.00025,2]
[339978192,1728245525215,-164.5251337,0.00025,2]
[339978193,1728245525225,-202.23801295,0.00025,2]
[339978194,1728245525235,-10364.0,0.00025,2]
[339978195,1728245525245,-344.65254133,0.00025,2]
[339978196,1728245525257,-822.92061635,0.00025,2]
[339978197,1728245525269,-1000.0,0.00025,2]
[339978198,1728245525279,-500.0,0.00025,4]
[339978199,1728245525292,-74672.25488653,0.00025,2]
[339978200,1728245525303,-506.91324581,0.00025,2]
[339978201,1728245525312,-160.15,0.00025,2]
[339978202,1728245525322,-1000.0,0.00025,5]
[339978204,1728245525333,-7460.96660369,0.00025,2]
[339978205,1728245525343,-199.999999,0.00025,120]
[339978206,1728245525354,-150.0,0.00025,2]
[339978207,1728245525364,-314743.15950211,0.0002509,2]
[339978208,1728245525375,-750.0,0.00025205,2]
[339978209,1728245525385,-307.56456507,0.000253,10]
[339978210,1728245525396,-280.0,0.000253,10]
[339978211,1728245525408,-342.0,0.00025373,2]
[339978212,1728245525418,-400.0,0.00025469,3]
[339978213,1728245525428,-3336.95,0.000255,7]
[339978214,1728245525439,-18633.03,0.000256,14]
[339978215,1728245525448,-850.0,0.00025753,2]
[339978216,1728245525457,-525.10043984,0.00026,2]
[339978217,1728245525471,-22955.89,0.00026,14]
[339978218,1728245525483,-3371.73276792,0.00026,2]
[339978219,1728245525494,-563.5,0.00026,31]
[339978220,1728245525504,-500.0,0.00026,30]
[339978221,1728245525514,-500.0,0.00026,30]
[339978222,1728245525524,-500.0,0.00026,30]
[339978223,1728245525537,-500.0,0.00026,30]
[339978224,1728245525548,-500.0,0.00026,30]
[339978225,1728245525560,-500.0,0.00026,30]
[339978226,1728245525571,-500.0,0.00026,30]
[339978227,1728245525582,-500.0,0.00026,30]
[339978228,1728245525593,-500.0,0.00026,30]
[339978229,1728245525603,-500.0,0.00026,30]
[339978230,1728245525615,-500.0,0.00026,30]
[339978231,1728245525626,-500.0,0.00026,30]
[339978232,1728245525636,-504.48812238,0.00026,30]
[339978233,1728245525647,-500.0,0.00026,30]
[339978234,1728245525657,-500.0,0.00026,30]
[339978235,1728245525669,-500.0,0.00026,30]
[339978236,1728245525680,-500.0,0.00026,30]
[339978237,1728245525691,-500.0,0.00026,30]
[339978238,1728245525702,-500.0,0.00026,30]
[339978239,1728245525712,-500.0,0.00026,30]
[339978240,1728245525724,-500.0,0.00026,30]
[339978241,1728245525734,-500.0,0.00026,30]
[339978242,1728245525747,-500.0,0.00026,30]
[339978243,1728245525758,-166.0483471,0.00026,30]
[339978244,1728245525769,-500.0,0.00026,30]
[339978245,1728245525780,-500.0,0.00026,30]
[339978246,1728245525791,-500.0,0.00026,30]
[339978247,1728245525802,-500.0,0.00026,30]
[339978248,1728245525814,-500.0,0.00026,30]
[339978249,1728245525824,-500.0,0.00026,30]
[339978250,1728245525835,-500.0,0.00026,30]
[339978251,1728245525846,-500.0,0.00026,30]
[339978252,1728245525857,-503.61368758,0.00026,30]
[339978253,1728245525869,-500.0,0.00026,30]
[339978254,1728245525879,-500.0,0.00026,30]
[339978255,1728245525891,-500.0,0.00026,30]
[339978256,1728245525903,-500.0,0.00026,30]
[339978257,1728245525914,-500.0,0.00026,30]
[339978258,1728245525923,-500.0,0.00026,30]
[339978259,1728245525933,-500.0,0.00026,30]
[339978260,1728245525944,-500.0,0.00026,30]
[339978261,1728245525957,-500.0,0.00026,30]
[339978262,1728245525977,-500.0,0.00026,30]
[339978263,1728245525991,-500.0,0.00026,30]
[339978264,1728245526001,-500.0,0.00026,30]
[339978265,1728245526013,-500.0,0.00026,30]
[339978266,1728245526026,-224.172624,0.00026137,2]
[339978267,1728245526036,-3336.95,0.000263,7]
[339978268,1728245526045,-12112.26,0.000263,14]
[339978269,1728245526055,-950.0,0.00026301,2]
[339978270,1728245526065,-273.714246,0.00026388,2]
[339978271,1728245526075,-7458.94652043,0.0002649,2]
[339978272,1728245526084,-248.0,0.000266,2]
[339978273,1728245526094,-248.0,0.000266,2]
[339978274,1728245526104,-152.77,0.000266,31]
[339978275,1728245526114,-152.77,0.000266,31]
[339978276,1728245526124,-152.77,0.000266,31]
[339978277,1728245526133,-152.77,0.000266,31]
[339978278,1728245526144,-152.77,0.000266,31]
[339978279,1728245526153,-18633.03,0.000267,14]
[339978280,1728245526167,-1050.0,0.00026849,2]
[339978281,1728245526176,-22955.89,0.00027,14]
[339978282,1728245526186,-339.0,0.00027064,2]
[339978283,1728245526195,-3336.95,0.000271,7]
[339978284,1728245526207,-2543.11037312,0.00027397,2]
[339978285,1728245526216,-2543.11037312,0.00027397,2]
[339978286,1728245526226,-2543.11037312,0.00027397,2]
[339978287,1728245526235,-2543.11037312,0.00027397,2]
[339978288,1728245526246,-2543.11037312,0.00027397,2]
[339978289,1728245526256,-2543.11037312,0.00027397,2]
[339978290,1728245526265,-2543.11037312,0.00027397,2]
[339978291,1728245526275,-2543.11037312,0.00027397,2]
[339978292,1728245526285,-2543.11037312,0.00027397,2]
[339978293,1728245526295,-2543.11037312,0.00027397,2]
[339978294,1728245526304,-2543.11037312,0.00027397,2]
[339978295,1728245526314,-2543.11037312,0.00027397,2]
[339978296,1728245526323,-2543.11037312,0.00027397,2]
[339978297,1728245526333,-2543.11037312,0.00027397,2]
[339978298,1728245526343,-2543.11037312,0.00027397,2]
[339978299,1728245526352,-2543.11037312,0.00027397,2]
[339978300,1728245526361,-2543.11037312,0.00027397,2]
[339978301,1728245526371,-2543.11037312,0.00027397,2]
[339978302,1728245526380,-2543.11037312,0.00027397,2]
[339978303,1728245526390,-2543.11037312,0.00027397,2]
[339978304,1728245526399,-2543.11037312,0.00027397,2]
[339978305,1728245526409,-2543.11037312,0.00027397,2]
[339978306,1728245526421,-2543.11037312,0.00027397,2]
[339978307,1728245526432,-2543.11037312,0.00027397,2]
[339978308,1728245526444,-2543.11037312,0.00027397,2]
[339978309,1728245526453,-2543.11037312,0.00027397,2]
[339978310,1728245526464,-2543.11037312,0.00027397,2]
[339978311,1728245526473,-2543.11037312,0.00027397,2]
[339978312,1728245526483,-2543.11037312,0.00027397,2]
[339978313,1728245526493,-2543.11037312,0.00027397,2]
[339978314,1728245526503,-2543.11037312,0.00027397,2]
[339978315,1728245526514,-2543.11037312,0.00027397,2]
[339978316,1728245526524,-2543.11037312,0.00027397,2]
[339978317,1728245526533,-2543.11037312,0.00027397,2]
[339978318,1728245526543,-2543.11037312,0.00027397,2]
[339978319,1728245526552,-2543.11037312,0.00027397,2]
[339978320,1728245526562,-2543.11037312,0.00027397,2]
[339978321,1728245526572,-2543.11037312,0.00027397,2]
[339978322,1728245526581,-2543.11037312,0.00027397,2]
[339978323,1728245526592,-2543.11037312,0.00027397,2]
[339978324,1728245526610,-2543.11037312,0.00027397,2]
[339978325,1728245526620,-2543.11037312,0.00027397,2]
[339978326,1728245526630,-2543.11037312,0.00027397,2]
[339978327,1728245526640,-2543.11037312,0.00027397,2]
[339978328,1728245526651,-2543.11037312,0.00027397,2]
[339978329,1728245526660,-2543.11037312,0.00027397,2]
[339978330,1728245526670,-2543.11037312,0.00027397,2]
[339978331,1728245526680,-2543.11037312,0.00027397,2]
[339978332,1728245526690,-2543.11037312,0.00027397,2]
[339978333,1728245526699,-2543.11037312,0.00027397,2]
[339978334,1728245526710,-2543.11037312,0.00027397,2]
[339978335,1728245526720,-2543.11037312,0.00027397,2]
[339978336,1728245526731,-2543.11037312,0.00027397,2]
[339978337,1728245526740,-2543.11037312,0.00027397,2]
[339978338,1728245526750,-2543.11037312,0.00027397,2]
[339978339,1728245526760,-2543.11037312,0.00027397,2]
[339978340,1728245526770,-2543.11037312,0.00027397,2]
[339978341,1728245526781,-2543.11037312,0.00027397,2]
[339978342,1728245526791,-2543.11037312,0.00027397,2]
[339978343,1728245526800,-2543.11037312,0.00027397,2]
[339978344,1728245526810,-2543.11037312,0.00027397,2]
[339978345,1728245526820,-2543.11037312,0.00027397,2]
[339978346,1728245526830,-2543.11037312,0.00027397,2]
[339978347,1728245526840,-2543.11037312,0.00027397,2]
[339978348,1728245526850,-2543.11037312,0.00027397,2]
[339978349,1728245526860,-2543.11037312,0.00027397,2]
[339978350,1728245526870,-2543.11037312,0.00027397,2]
[339978351,1728245526879,-2543.11037312,0.00027397,2]
[339978352,1728245526890,-2543.11037312,0.00027397,2]
[339978353,1728245526900,-2543.11037312,0.00027397,2]
[339978354,1728245526911,-6698.64297965,0.00027397,2]
[339978355,1728245526922,-6698.64297965,0.00027397,2]
[339978356,1728245526932,-6698.64297965,0.00027397,2]
[339978357,1728245526944,-6698.64297965,0.00027397,2]
[339978358,1728245526955,-6698.64297965,0.00027397,2]
[339978359,1728245526967,-6698.64297965,0.00027397,2]
[339978360,1728245526979,-6698.64297965,0.00027397,2]
[339978361,1728245526990,-6698.64297965,0.00027397,2]
[339978362,1728245527003,-6698.64297965,0.00027397,2]
[339978363,1728245527015,-6698.64297965,0.00027397,2]
[339978364,1728245527028,-6698.64297965,0.00027397,2]
[339978365,1728245527038,-6698.64297965,0.00027397,2]
[339978366,1728245527050,-6698.64297965,0.00027397,2]
[339978367,1728245527063,-6698.64297965,0.00027397,2]
[339978368,1728245527074,-6698.64297965,0.00027397,2]
[339978369,1728245527084,-6698.64297965,0.00027397,2]
[339978370,1728245527094,-6698.64297965,0.00027397,2]
[339978371,1728245527105,-6698.64297965,0.00027397,2]
[339978372,1728245527116,-6698.64297965,0.00027397,2]
[339978373,1728245527128,-6698.64297965,0.00027397,2]
[339978374,1728245527139,-6698.64297965,0.00027397,2]
[339978375,1728245527151,-7815.0834762,0.00027397,2]
[339978376,1728245527166,-292.53011699,0.00027397,2]
[339978377,1728245527177,-209.75116954,0.00027397,2]
[339978378,1728245527189,-551.06985495,0.00027397,2]
[339978379,1728245527201,-400.0,0.00027397,60]
[339978380,1728245527213,-1150.0,0.00027397,5]
[339978381,1728245527223,-151.0,0.00027397,2]
[339978382,1728245527233,-151.0,0.00027397,2]
[339978383,1728245527244,-156.183596,0.00027397,2]
[339978384,1728245527254,-192.664788,0.00027397,7]
[339978385,1728245527265,-192.664788,0.00027397,7]
[339978386,1728245527275,-192.664788,0.00027397,7]
[339978387,1728245527285,-192.664788,0.00027397,7]
[339978388,1728245527296,-192.664788,0.00027397,7]
[339978389,1728245527307,-192.664788,0.00027397,7]
[339978390,1728245527319,-192.664788,0.00027397,7]
[339978391,1728245527331,-192.664788,0.00027397,7]
[339978392,1728245527342,-192.664788,0.00027397,7]
[339978393,1728245527352,-192.664788,0.00027397,7]
[339978394,1728245527362,-192.664788,0.00027397,7]
[339978395,1728245527373,-192.664788,0.00027397,7]
[339978396,1728245527393,-192.664788,0.00027397,7]
[339978397,1728245527403,-192.664788,0.00027397,7]
[339978398,1728245527413,-192.664788,0.00027397,7]
[339978399,1728245527423,-192.664788,0.00027397,7]
[339978400,1728245527434,-192.664788,0.00027397,7]
[339978401,1728245527444,-192.664788,0.00027397,7]
[339978402,1728245527454,-192.664788,0.00027397,7]
[339978403,1728245527463,-192.664797,0.00027397,7]
[339978404,1728245527475,-44025.23954424,0.000275,2]
[339978405,1728245527487,-18633.03,0.000276,14]
[339978406,1728245527497,-300.0,0.000276,2]
[339978407,1728245527508,-300.0,0.000276,2]
[339978408,1728245527519,-300.0,0.000276,2]
[339978409,1728245527530,-391.0,0.0002783,15]
[339978410,1728245527541,-22955.89,0.000279,14]
[339978411,1728245527553,-12112.26,0.000279,14]
[339978412,1728245527565,-1250.0,0.00027945,5]
[339978413,1728245527575,-31750.73840808,0.0002799,2]
[339978414,1728245527585,-1157.03433379,0.0002799,7]
[339978415,1728245527595,-500.0,0.00028,2]
[339978416,1728245527605,-3336.95,0.00028,7]
[339978417,1728245527616,-7739.38370667,0.00028,2]
[339978418,1728245527627,-6213.07896032,0.00028,2]
[339978419,1728245527639,-6378.62,0.00028,14]
[339978420,1728245527652,-10000.0,0.00028,10]
[339978421,1728245527664,-1000.0,0.00028485,3]
[339978422,1728245527676,-1350.0,0.00028493,5]
[339978423,1728245527688,-18633.03,0.000285,14]
[339978424,1728245527700,-3000.0,0.000285,20]
[339978425,1728245527710,-300.0,0.000286,2]
[339978426,1728245527722,-300.0,0.000286,2]
[339978427,1728245527735,-300.0,0.000286,2]
[339978428,1728245527748,-339.0,0.00028756,2]
[339978429,1728245527977,-3336.95,0.000289,7]
[339978430,1728245527997,-845.0,0.000289,2]
[339978431,1728245528008,-739.0,0.00028976,2]
[339978432,1728245528019,-339.0,0.00028997,2]
[339978433,1728245528029,-855.28719421,0.00029,2]
[339978434,1728245528039,-36064.28843725,0.00029,2]
[339978435,1728245528050,-2000.0,0.00029,7]
[339978436,1728245528060,-739.0,0.00029,2]
[339978437,1728245528071,-208.23590767,0.00029014,30]
[339978438,1728245528081,-1450.0,0.00029041,5]
[339978439,1728245528093,-22955.89,0.000291,14]
[339978440,1728245528103,-739.0,0.0002925,2]
[339978441,1728245528115,-208.23590767,0.00029397,30]
[339978442,1728245528125,-739.0,0.00029524,2]
[339978443,1728245528136,-1550.0,0.00029589,5]
[339978444,1728245528146,-300.0,0.000296,2]
[339978445,1728245528156,-300.0,0.000296,2]
[339978446,1728245528170,-300.0,0.000296,2]
[339978447,1728245528181,-739.0,0.00029798,2]
[339978448,1728245528192,-18633.03,0.000298,14]
[339978449,1728245528204,-165.78,0.00029878,2]
[339978450,1728245528214,-191.6139003,0.0003,7]
[339978451,1728245528225,-200.0,0.0003,2]
[339978452,1728245528236,-389.05030539,0.0003,10]
[339978453,1728245528246,-7887.40129132,0.0003,10]
[339978454,1728245528257,-1500.0,0.0003,2]
[339978455,1728245528267,-63000.0,0.0003,15]
[339978456,1728245528278,-1044246.68476018,0.0003,7]
[339978457,1728245528289,-1013.73065452,0.0003,7]
[339978458,1728245528299,-2000.0,0.0003,2]
[339978459,1728245528309,-1000.0,0.0003,2]
[339978460,1728245528318,-1683.60953681,0.0003,2]
[339978461,1728245528331,-1071.45922437,0.0003,10]
[339978462,1728245528342,-54098.0,0.0003,7]
[339978463,1728245528355,-263.0,0.0003,2]
[339978464,1728245528376,-739.0,0.00030072,2]
[339978465,1728245528390,-3336.95,0.000301,7]
[339978466,1728245528400,-12112.26,0.000301,14]
[339978467,1728245528411,-1241.03,0.00030136,120]
[339978468,1728245528423,-500.0,0.00030136,2]
[339978469,1728245528435,-739.0,0.00030137,2]
[339978470,1728245528447,-400.0,0.00030137,60]
[339978471,1728245528458,-1650.0,0.00030137,5]
[339978472,1728245528469,-1241.03,0.0003041,120]
[339978473,1728245528481,-339.0,0.00030447,2]
[339978474,1728245528491,-22955.89,0.000306,14]
[339978475,1728245528503,-300.0,0.000306,3]
[339978476,1728245528515,-300.0,0.000306,3]
[339978477,1728245528525,-300.0,0.000306,3]
[339978478,1728245528536,-207.0,0.00030613,30]
[339978479,1728245528548,-186.72642906,0.0003065,2]
[339978480,1728245528560,-1241.03,0.00030684,120]
[339978481,1728245528569,-1750.0,0.00030685,5]
[339978482,1728245528581,-18633.03,0.000307,14]
[339978483,1728245528593,-152.0,0.00030844,6]
[339978484,1728245528605,-1241.03,0.00030958,120]
[339978485,1728245528617,-1241.03,0.00031232,120]
[339978486,1728245528627,-1850.0,0.00031233,5]
[339978487,1728245528639,-739.0,0.00031342,2]
[339978488,1728245528650,-2000.0,0.00031494,3]
[339978489,1728245528661,-1241.03,0.00031506,120]
[339978490,1728245528673,-160.0,0.00031507,5]
[339978491,1728245528685,-152.0,0.00031578,6]
[339978492,1728245528695,-300.0,0.000316,5]
[339978493,1728245528706,-300.0,0.000316,5]
[339978494,1728245528718,-300.0,0.000316,5]
[339978495,1728245528731,-743.0,0.00031644,2]
[339978496,1728245528743,-1241.03,0.0003178,120]
[339978497,1728245528755,-1950.0,0.00031781,5]
[339978498,1728245528766,-1504.0,0.00032,21]
[339978499,1728245528778,-253.594856,0.00032,30]
[339978500,1728245528791,-1241.03,0.00032054,120]
[339978501,1728245528802,-22955.89,0.000321,14]
[339978502,1728245528813,-29244.71982722,0.0003212,10]
[339978503,1728245528825,-152.0,0.00032312,7]
[339978504,1728245528836,-1241.03,0.00032328,120]
[339978505,1728245528846,-2050.0,0.00032329,5]
[339978506,1728245528857,-12112.26,0.000324,14]
[339978507,1728245528867,-320.0,0.000325,2]
[339978508,1728245528878,-1000.00000001,0.000325,2]
[339978509,1728245528891,-739.0,0.00032548,2]
[339978510,1728245528903,-739.0,0.00032548,2]
[339978511,1728245528914,-300.0,0.000326,6]
[339978512,1728245528926,-300.0,0.000326,6]
[339978513,1728245528935,-300.0,0.000326,6]
[339978514,1728245528947,-1241.03,0.00032602,120]
[339978515,1728245528957,-224.172624,0.00032658,2]
[339978516,1728245528967,-265.92376512,0.00032876,2]
[339978517,1728245528977,-2543.11037312,0.00032876,2]
[339978518,1728245528988,-2543.11037312,0.00032876,2]
[339978519,1728245529001,-2543.11037312,0.00032876,2]
[339978520,1728245529012,-2543.11037312,0.00032876,2]
[339978521,1728245529023,-2543.11037312,0.00032876,2]
[339978522,1728245529036,-2543.11037312,0.00032876,2]
[339978523,1728245529047,-2543.11037312,0.00032876,2]
[339978524,1728245529058,-7815.08347626,0.00032876,2]
[339978525,1728245529069,-484.78287329,0.00032876,2]
[339978526,1728245529080,-168.17678901,0.00032876,2]
[339978527,1728245529090,-239.44887643,0.00032876,2]
[339978528,1728245529101,-270.72633544,0.00032876,2]
[339978529,1728245529112,-179.95828786,0.00032876,2]
[339978530,1728245529125,-500.0,0.00032876,2]
[339978531,1728245529135,-384.45975859,0.00032876,2]
[339978532,1728245529144,-500.0,0.00032876,2]
[339978533,1728245529154,-428.82555797,0.00032876,2]
[339978534,1728245529168,-200.0,0.00032876,2]
[339978535,1728245529177,-500.0,0.00032876,2]
[339978536,1728245529189,-380.66551032,0.00032876,2]
[339978537,1728245529199,-500.0,0.00032876,2]
[339978538,1728245529209,-295.2002597,0.00032876,2]
[339978539,1728245529222,-500.0,0.00032876,2]
[339978540,1728245529235,-500.0,0.00032876,2]
[339978541,1728245529246,-500.0,0.00032876,2]
[339978542,1728245529258,-489.41939558,0.00032876,2]
[339978543,1728245529269,-605.54279104,0.00032876,2]
[339978544,1728245529279,-500.0,0.00032876,2]
[339978545,1728245529289,-500.0,0.00032876,2]
[339978546,1728245529298,-500.0,0.00032876,2]
[339978547,1728245529308,-500.0,0.00032876,2]
[339978548,1728245529318,-500.0,0.00032876,2]
[339978549,1728245529328,-213.08629661,0.00032876,2]
[339978550,1728245529340,-500.0,0.00032876,2]
[339978551,1728245529350,-500.0,0.00032876,2]
[339978552,1728245529360,-500.0,0.00032876,2]
[339978553,1728245529369,-500.0,0.00032876,2]
[339978554,1728245529379,-253.91579963,0.00032876,2]
[339978555,1728245529388,-500.0,0.00032876,2]
[339978556,1728245529399,-500.0,0.00032876,2]
[339978557,1728245529408,-500.0,0.00032876,2]
[339978558,1728245529417,-500.0,0.00032876,2]
[339978559,1728245529426,-298.89891088,0.00032876,2]
[339978560,1728245529436,-500.0,0.00032876,2]
[339978561,1728245529445,-500.0,0.00032876,2]
[339978562,1728245529455,-500.0,0.00032876,2]
[339978563,1728245529467,-500.0,0.00032876,2]
[339978564,1728245529479,-500.0,0.00032876,2]
[339978565,1728245529491,-500.0,0.00032876,2]
[339978566,1728245529501,-500.0,0.00032876,2]
[339978567,1728245529512,-500.0,0.00032876,2]
[339978568,1728245529523,-500.0,0.00032876,2]
[339978569,1728245529533,-500.0,0.00032876,2]
[339978570,1728245529542,-500.0,0.00032876,2]
[339978571,1728245529553,-500.0,0.00032876,2]
[339978572,1728245529563,-500.0,0.00032876,2]
[339978573,1728245529573,-500.0,0.00032876,2]
[339978574,1728245529582,-500.0,0.00032876,2]
[339978575,1728245529592,-500.0,0.00032876,2]
[339978576,1728245529602,-500.0,0.00032876,2]
[339978577,1728245529613,-500.0,0.00032876,2]
[339978578,1728245529623,-500.0,0.00032876,2]
[339978579,1728245529635,-500.0,0.00032876,2]
[339978580,1728245529645,-176.85672007,0.00032876,2]
[339978581,1728245529656,-500.0,0.00032876,2]
[339978582,1728245529668,-500.0,0.00032876,2]
[339978583,1728245529680,-500.0,0.00032876,2]
[339978584,1728245529692,-500.0,0.00032876,2]
[339978585,1728245529702,-500.0,0.00032876,2]
[339978586,1728245529714,-500.0,0.00032876,2]
[339978587,1728245529724,-500.0,0.00032876,2]
[339978588,1728245529735,-500.0,0.00032876,2]
[339978589,1728245529747,-500.0,0.00032876,2]
[339978590,1728245529759,-500.0,0.00032876,2]
[339978591,1728245529770,-500.0,0.00032876,2]
[339978592,1728245529780,-500.0,0.00032876,2]
[339978593,1728245529790,-500.0,0.00032876,2]
[339978594,1728245529799,-500.0,0.00032876,2]
[339978595,1728245529811,-500.0,0.00032876,2]
[339978596,1728245529819,-500.0,0.00032876,2]
[339978597,1728245529831,-500.0,0.00032876,2]
[339978598,1728245529842,-402.46963691,0.00032876,2]
[339978599,1728245529853,-500.0,0.00032876,2]
[339978600,1728245529863,-500.0,0.00032876,2]
[339978601,1728245529875,-500.0,0.00032876,2]
[339978602,1728245529885,-500.0,0.00032876,2]
[339978603,1728245529896,-500.0,0.00032876,2]
[339978604,1728245529906,-500.0,0.00032876,2]
[339978605,1728245529917,-600.0,0.00032876,2]
[339978606,1728245529926,-500.0,0.00032876,2]
[339978607,1728245529937,-500.0,0.00032876,2]
[339978608,1728245529946,-719.12413362,0.00032876,2]